bitfinex/quotes_SOLUSD_20250630
["timestamp","ask_amount","ask_price","bid_price","bid_amount"]
[1751302174660,11.94076462,157.1,157.09,0.2]
[1751302175162,41.94076462,157.1,157.09,0.2]
[1751302175776,11.94076462,157.1,157.09,0.2]
[1751302178754,41.94076462,157.1,157.09,0.2]
[1751302182187,42.08292619,157.1,157.09,0.2]
[1751302182483,42.22508776,157.1,157.09,0.2]
[1751302182906,42.22508776,157.1,157.06,0.2]
[1751302182907,0.28432314,157.09,157.06,0.2]
[1751302183077,5.57539225,157.07,157.06,0.2]
[1751302183956,41.94198039,157.07,157.06,0.2]
[1751302186194,209.91816614,157.07,157.03,0.2]
[1751302186386,5.57539225,157.04,157.03,0.2]
[1751302186589,62.09539225,157.04,157.03,0.2]
[1751302188290,68.9401435,157.04,157.03,0.2]
[1751302189287,41.94319663,157.04,157.03,0.2]
[1751302189488,36.36780438,157.04,157.03,0.2]
[1751302192170,41.94319663,157.04,157.03,0.2]
[1751302192372,42.4201435,157.04,157.03,0.2]
[1751302193375,42.70446664,157.04,157.03,0.2]
[1751302193573,68.70446664,157.04,157.02,0.2]
[1751302193776,178.57971539,157.03,157.01,636.5057]
[1751302194081,37.69073912,157.02,157.01,636.5057]
[1751302194388,44.05935458,157.02,157.01,636.5057]
[1751302195590,44.34367772,157.02,157.01,636.5057]
[1751302196170,14.34367772,157.02,157.01,636.5057]
[1751302199190,70.34367772,157.02,157.01,636.5057]
[1751302201798,70.34367772,157.02,157.01,530.08686951]
[1751302201973,44.34367772,157.02,157.01,530.08686951]
[1751302202398,62.99332658,157.02,157.01,530.08686951]
[1751302202695,62.99332658,157.02,157.01,523.43450137]
[1751302203278,72.99332658,157.02,157.01,523.43450137]
[1751302204177,62.99332658,157.02,157.01,523.43450137]
[1751302204374,62.99332658,157.02,157.01,417.88480765]
[1751302204595,72.99332658,157.02,157.01,414.17080765]
[1751302206098,72.99332658,157.02,157.01,378.23080765]
[1751302206285,62.99332658,157.02,157.01,374.95080765]
[1751302206490,72.99332658,157.02,157.01,357.59080765]
[1751302206685,72.99332658,157.02,157.01,355.90580765]
[1751302207075,190.84964886,156.98,156.91,0.2]
[1751302207276,5.85971539,156.92,156.88,0.2]
[1751302207574,31.57539225,156.89,156.88,0.2]
[1751302207790,58.09539225,156.89,156.88,0.2]
[1751302207971,26.52,156.89,156.88,0.2]
[1751302208178,30.0,156.89,156.88,0.2]
[1751302208400,42.42623165,156.89,156.88,0.2]
[1751302208587,36.8508394,156.89,156.88,0.2]
[1751302208985,42.42623165,156.89,156.88,0.2]
[1751302209982,45.55946163,156.89,156.88,0.2]
[1751302211395,45.84378477,156.89,156.88,0.2]
[1751302213387,45.55946163,156.89,156.88,0.2]
[1751302213586,71.55946163,156.89,156.88,0.2]
[1751302213977,69.69426163,156.89,156.88,0.2]
[1751302214176,62.62823363,156.89,156.88,0.2]
[1751302214406,36.53266854,156.86,156.81,6.06]
[1751302214706,35.57539225,156.84,156.81,6.06]
[1751302214905,26.99694687,156.83,156.81,6.06]
[1751302215407,26.99694687,156.83,156.81,0.2]
[1751302215597,30.0,156.82,156.81,0.2]
[1751302215985,36.37673766,156.82,156.81,0.2]
[1751302217080,30.0,156.82,156.81,5.77539225]
[1751302217283,36.37673766,156.82,156.81,5.77539225]
[1751302217481,6.37673766,156.82,156.81,5.77539225]
[1751302217886,6.37673766,156.82,156.81,0.2]
[1751302218085,26.52,156.83,156.81,0.2]
[1751302218611,30.0,156.82,156.81,0.2]
[1751302219184,30.47694687,156.82,156.81,0.2]
[1751302219510,62.57233912,156.82,156.81,0.2]
[1751302220102,68.94907678,156.82,156.81,0.2]
[1751302222985,69.23339992,156.82,156.81,0.2]
[1751302223497,68.94907678,156.82,156.81,0.2]
[1751302225519,69.23339992,156.82,156.81,0.2]
[1751302227311,89.51944878,156.82,156.81,0.2]
[1751302227509,89.51944878,156.82,156.74,0.2]
[1751302227510,5.57539225,156.75,156.74,0.2]
[1751302227817,62.11539225,156.75,156.74,0.2]
[1751302228193,62.87666226,156.75,156.74,0.2]
[1751302228614,69.25624758,156.75,156.74,0.2]
[1751302228798,18.64964886,156.74,156.73,1.2820433]
[1751302228996,54.22504111,156.74,156.73,1.2820433]
[1751302230216,44.64964886,156.72,156.71,8.13970878]
[1751302230417,107.24198798,156.72,156.71,8.13970878]
[1751302230714,129.85913398,156.72,156.66,5.42109384]
[1751302230894,31.57539225,156.69,156.66,5.42109384]
[1751302231095,58.59233912,156.69,156.66,5.42109384]
[1751302231290,107.52631112,156.69,156.66,5.42109384]
[1751302231507,113.10170337,156.69,156.66,5.42109384]
[1751302231910,56.47694687,156.69,156.66,5.42109384]
[1751302232111,83.01694687,156.69,156.66,5.42109384]
[1751302232311,57.01694687,156.69,156.66,5.42109384]
[1751302232715,68.97436732,156.69,156.66,5.42109384]
[1751302232909,74.83408271,156.69,156.66,5.42109384]
[1751302233425,63.68329821,156.69,156.66,5.42109384]
[1751302233725,68.97436732,156.69,156.66,5.42109384]
[1751302233900,71.70464221,156.69,156.66,5.42109384]
[1751302234102,63.39897507,156.69,156.66,5.42109384]
[1751302234526,71.70464221,156.69,156.66,5.42109384]
[1751302234824,90.35429107,156.69,156.66,5.42109384]
[1751302235200,63.39897507,156.69,156.66,5.42109384]
[1751302235400,71.98896535,156.69,156.66,5.42109384]
[1751302235926,71.98896535,156.69,156.68,4.7353561]
[1751302235927,82.33294707,156.69,156.68,4.7353561]
[1751302236134,26.28432314,156.67,156.66,5.42109384]
[1751302236437,27.32127001,156.67,156.66,5.42109384]
[1751302236732,33.41978978,156.67,156.66,5.42109384]
[1751302237322,63.41978978,156.67,156.66,5.42109384]
[1751302237525,36.85978978,156.67,156.66,5.42109384]
[1751302237732,63.39978978,156.67,156.66,5.42109384]
[1751302237939,36.85978978,156.67,156.66,5.42109384]
[1751302238302,20.19338978,156.67,156.66,21.54906098]
[1751302238536,26.66,156.72,156.66,21.54906098]
[1751302238715,34.96566714,156.72,156.66,13.24339384]
[1751302238904,34.96566714,156.72,156.68,8.30566714]
[1751302239236,41.34647367,156.72,156.66,13.24339384]
[1751302239439,41.34647367,156.72,156.68,8.30566714]
[1751302239634,57.29849,156.72,156.68,8.30566714]
[1751302239933,8.30566714,156.71,156.66,21.54906098]
[1751302240139,26.66,156.7,156.66,21.54906098]
[1751302241026,6.3820282,156.69,156.67,8.30566714]
[1751302241533,26.64,156.68,156.66,5.42109384]
[1751302241730,34.94566714,156.68,156.66,5.42109384]
[1751302242514,26.64,156.68,156.66,5.42109384]
[1751302242811,8.30566714,156.67,156.66,5.42109384]
[1751302243020,14.68851005,156.67,156.66,5.42109384]
[1751302243431,33.62248205,156.67,156.66,5.42109384]
[1751302244135,63.62248205,156.67,156.66,5.42109384]
[1751302245223,36.66716605,156.67,156.66,5.42109384]
[1751302245429,36.38284291,156.67,156.66,5.42109384]
[1751302245734,70.68851005,156.67,156.66,5.42109384]
[1751302247548,36.38284291,156.67,156.66,5.42109384]
[1751302247733,63.02284291,156.67,156.66,5.42109384]
[1751302247917,71.32851005,156.67,156.66,5.42109384]
[1751302249229,63.02284291,156.67,156.66,5.42109384]
[1751302249437,71.32851005,156.67,156.66,5.42109384]
[1751302251025,63.02284291,156.67,156.66,5.42109384]
[1751302251537,71.32851005,156.67,156.66,5.42109384]
[1751302251720,71.61283319,156.67,156.66,5.42109384]
[1751302252326,97.61283319,156.67,156.66,5.42109384]
[1751302253023,90.26248205,156.67,156.66,5.42109384]
[1751302254936,71.61283319,156.67,156.66,5.42109384]
[1751302255150,44.97283319,156.67,156.66,5.42109384]
[1751302255349,71.59283319,156.67,156.66,5.42109384]
[1751302256241,71.59283319,156.67,156.66,5.62109384]
[1751302257737,90.24248205,156.67,156.66,5.62109384]
[1751302265745,81.93681491,156.67,156.66,5.62109384]
[1751302265943,87.54829004,156.67,156.66,5.62109384]
[1751302268560,18.64964886,156.66,156.65,5.88454398]
[1751302268767,54.26112399,156.66,156.65,5.88454398]
[1751302268968,200.46112399,156.66,156.65,5.88454398]
[1751302269334,54.26112399,156.66,156.65,5.88454398]
[1751302269550,44.64964886,156.63,156.62,8.495418]
[1751302269858,44.933972,156.6,156.59,8.81398774]
[1751302270030,82.71692226,156.6,156.59,8.81398774]
[1751302270230,31.61147513,156.6,156.59,8.81398774]
[1751302270429,64.55717117,156.6,156.59,8.81398774]
[1751302270645,82.58,156.6,156.59,8.81398774]
[1751302270851,30.0,156.6,156.59,8.81398774]
[1751302271166,36.38569604,156.6,156.59,8.81398774]
[1751302271765,30.0,156.6,156.59,8.81398774]
[1751302272639,36.38569604,156.6,156.59,8.81398774]
[1751302273541,30.0,156.6,156.59,8.81398774]
[1751302275264,36.38569604,156.6,156.59,8.81398774]
[1751302276966,62.98569604,156.6,156.59,8.81398774]
[1751302277674,36.38569604,156.6,156.59,8.81398774]
[1751302277863,15.96120969,156.63,156.59,8.81398774]
[1751302277864,24.27368135,156.63,156.59,8.81398774]
[1751302278060,32.9648806,156.62,156.59,8.81398774]
[1751302278367,32.9648806,156.62,156.6,8.31247166]
[1751302278771,6.3848806,156.62,156.6,8.31247166]
[1751302279866,6.3848806,156.62,156.59,17.1264594]
[1751302280279,6.3848806,156.62,156.6,8.31247166]
[1751302280846,30.0,156.61,156.6,8.31247166]
[1751302281049,40.28350707,156.61,156.6,8.31247166]
[1751302281479,40.28350707,156.61,156.59,17.1264594]
[1751302281843,40.28350707,156.61,156.6,8.31247166]
[1751302282246,40.28350707,156.61,156.59,8.81398774]
[1751302282568,66.86350707,156.61,156.59,8.81398774]
[1751302283148,6.38569604,156.6,156.59,8.81398774]
[1751302283472,36.38569604,156.6,156.59,8.81398774]
[1751302285777,30.0,156.6,156.59,8.81398774]
[1751302285958,36.38569604,156.6,156.59,8.81398774]
[1751302286844,36.38569604,156.6,156.59,17.1264594]
[1751302287958,30.0,156.6,156.59,17.1264594]
[1751302288665,16.66888614,156.61,156.59,17.1264594]
[1751302289066,10.28350707,156.61,156.6,8.31247166]
[1751302289369,6.48293764,156.67,156.6,14.54179604]
[1751302289669,6.48293764,156.67,156.61,5.88]
[1751302289856,26.6,156.66,156.63,8.31247166]
[1751302290055,34.91247166,156.66,156.61,14.19247166]
[1751302290263,34.91247166,156.66,156.6,8.1561]
[1751302290264,8.31247166,156.65,156.6,8.31247166]
[1751302290443,30.0,156.63,156.6,8.31247166]
[1751302290650,56.6,156.63,156.6,8.31247166]
[1751302290874,8.31247166,156.61,156.59,8.81398774]
[1751302291049,33.00569604,156.6,156.59,8.81398774]
[1751302292346,63.00569604,156.6,156.59,8.81398774]
[1751302292770,71.3181677,156.6,156.59,8.81398774]
[1751302293359,63.00569604,156.6,156.59,8.81398774]
[1751302293777,68.61885764,156.6,156.59,8.81398774]
[1751302296071,63.00569604,156.6,156.59,8.81398774]
[1751302296451,68.61885764,156.6,156.59,8.81398774]
[1751302297777,63.00569604,156.6,156.59,8.81398774]
[1751302298154,33.00569604,156.6,156.59,8.81398774]
[1751302298555,6.38569604,156.6,156.59,8.81398774]
[1751302298777,33.02569604,156.6,156.59,8.81398774]
[1751302300576,33.00569604,156.6,156.59,14.42714934]
[1751302301383,63.00569604,156.6,156.59,14.42714934]
[1751302301559,30.0,156.6,156.59,14.42714934]
[1751302302162,0.1,156.62,156.59,14.42714934]
[1751302302372,0.1,156.62,156.61,5.6131616]
[1751302302573,30.1,156.62,156.61,5.6131616]
[1751302303087,0.1,156.62,156.61,5.6131616]
[1751302303780,0.1,156.62,156.61,32.3892336]
[1751302303983,0.1,156.62,156.61,32.10491046]
[1751302304579,0.1,156.62,156.61,32.87703715]
[1751302304781,0.1,156.62,156.59,46.56192564]
[1751302304980,0.1,156.62,156.61,5.6131616]
[1751302307867,0.1,156.62,156.59,8.81398774]
[1751302308072,0.1,156.62,156.6,5.6131616]
[1751302308274,6.48503235,156.62,156.6,5.6131616]
[1751302310505,6.48503235,156.62,156.59,8.81398774]
[1751302310694,6.48503235,156.62,156.59,14.42714934]
[1751302310990,6.48503235,156.62,156.6,5.6131616]
[1751302312464,6.48503235,156.62,156.59,8.81398774]
[1751302312773,6.48503235,156.62,156.6,5.6131616]
[1751302313383,22.44723385,156.62,156.59,8.81398774]
[1751302314084,28.06039545,156.62,156.59,8.81398774]
[1751302314304,5.6131616,156.61,156.59,8.81398774]
[1751302314596,32.96569604,156.6,156.59,8.81398774]
[1751302314990,62.96569604,156.6,156.59,8.81398774]
[1751302320491,30.0,156.6,156.59,14.42714934]
[1751302320805,36.38569604,156.6,156.59,14.42714934]
[1751302320986,36.38569604,156.6,156.59,8.81398774]
[1751302321577,6.38569604,156.6,156.59,8.81398774]
[1751302322206,36.38569604,156.6,156.59,8.81398774]
[1751302322578,41.99885764,156.6,156.59,8.81398774]
[1751302326702,62.96569604,156.6,156.59,8.81398774]
[1751302326890,68.57885764,156.6,156.59,8.81398774]
[1751302327087,62.96569604,156.6,156.59,8.81398774]
[1751302327497,68.57885764,156.6,156.59,8.81398774]
[1751302327881,62.96569604,156.6,156.59,8.81398774]
[1751302328106,36.38569604,156.6,156.59,8.81398774]
[1751302328301,30.0,156.6,156.59,14.42714934]
[1751302328483,36.38569604,156.6,156.59,14.42714934]
[1751302329708,36.38569604,156.6,156.59,8.81398774]
[1751302330586,62.96569604,156.6,156.59,8.81398774]
[1751302330785,68.57885764,156.6,156.59,8.81398774]
[1751302330996,70.10995764,156.6,156.59,8.81398774]
[1751302331697,96.10995764,156.6,156.59,8.81398774]
[1751302331899,76.00744238,156.6,156.59,8.81398774]
[1751302332283,37.91679604,156.6,156.59,8.81398774]
[1751302332506,36.38569604,156.6,156.59,8.81398774]
[1751302332706,62.96569604,156.6,156.59,8.81398774]
[1751302333289,62.96569604,156.6,156.59,14.42714934]
[1751302333290,30.0,156.6,156.59,14.42714934]
[1751302333616,36.38569604,156.6,156.59,14.42714934]
[1751302334582,36.38569604,156.6,156.59,8.81398774]
[1751302334986,62.96569604,156.6,156.59,8.81398774]
[1751302335200,68.57885764,156.6,156.59,8.81398774]
[1751302335509,62.96569604,156.6,156.59,8.81398774]
[1751302339114,36.38569604,156.6,156.59,8.81398774]
[1751302339284,36.38569604,156.6,156.59,14.42714934]
[1751302339722,36.38569604,156.6,156.59,8.81398774]
[1751302340206,36.38569604,156.6,156.59,14.42714934]
[1751302340835,30.0,156.6,156.59,14.42714934]
[1751302341795,0.1,156.62,156.59,14.42714934]
[1751302342104,6.4848806,156.62,156.61,5.6131616]
[1751302342294,36.4848806,156.62,156.61,5.6131616]
[1751302342491,30.1,156.62,156.61,5.6131616]
[1751302343310,0.1,156.62,156.61,5.6131616]
[1751302343716,0.1,156.62,156.61,24.26281046]
[1751302343892,0.1,156.67,156.62,0.28432314]
[1751302344092,30.0,156.63,156.62,0.28432314]
[1751302344410,0.1,156.67,156.63,18.64964886]
[1751302345218,6.48291419,156.67,156.66,5.6131616]
[1751302346596,6.48291419,156.67,156.62,5.88]
[1751302346792,6.48291419,156.67,156.64,5.6131616]
[1751302346992,6.48291419,156.67,156.66,5.6131616]
[1751302347412,36.48291419,156.67,156.66,5.6131616]
[1751302348507,0.1,156.67,156.66,5.6131616]
[1751302349525,6.48284291,156.67,156.66,5.6131616]
[1751302351515,0.1,156.67,156.66,5.6131616]
[1751302352298,0.1,156.67,156.66,24.26281046]
[1751302352723,0.1,156.67,156.66,24.5471336]
[1751302353201,0.1,156.67,156.66,56.93038395]
[1751302353804,0.1,156.67,156.66,50.26281046]
[1751302354005,0.1,156.67,156.66,18.64964886]
[1751302354309,0.1,156.67,156.66,24.26281046]
[1751302354502,0.1,156.67,156.66,57.56870898]
[1751302355311,0.1,156.67,156.66,31.56870898]
[1751302356324,0.1,156.68,156.67,18.933972]
[1751302356628,0.1,156.68,156.67,24.5471336]
[1751302357008,0.1,156.71,156.7,44.64964886]
[1751302357206,0.1,156.71,156.7,56.76097255]
[1751302357520,0.1,156.74,156.73,50.26281046]
[1751302358932,0.1,156.74,156.73,50.5471336]
[1751302359505,0.1,156.74,156.73,44.933972]
[1751302359713,0.1,156.74,156.73,50.5471336]
[1751302360006,0.1,156.78,156.74,18.933972]
[1751302360323,0.1,156.78,156.77,5.6131616]
[1751302360511,30.1,156.78,156.77,30.4071336]
[1751302360709,6.47836458,156.78,156.77,5.86]
[1751302361519,30.1,156.78,156.77,11.4731616]
[1751302361836,30.1,156.78,156.77,42.39906664]
[1751302361837,0.1,156.78,156.77,42.39906664]
[1751302362304,10.32691828,156.79,156.78,18.933972]
[1751302362509,6.37576387,156.85,156.78,30.1602952]
[1751302362713,6.37576387,156.85,156.84,5.6131616]
[1751302362916,36.37576387,156.85,156.78,24.5471336]
[1751302363118,36.37576387,156.85,156.82,5.6131616]
[1751302363628,22.31455889,156.85,156.81,5.6131616]
[1751302364138,30.0,156.84,156.78,18.64964886]
[1751302364343,30.0,156.84,156.8,5.6131616]
[1751302364542,30.0,156.84,156.79,5.6131616]
[1751302364543,35.6131616,156.84,156.79,5.6131616]
[1751302364830,30.0,156.84,156.8,5.6131616]
[1751302365210,30.0,156.84,156.81,5.6131616]
[1751302365914,6.37633105,156.83,156.81,5.6131616]
[1751302366435,30.0,156.84,156.83,18.64964886]
[1751302366841,36.3759245,156.84,156.83,5.6131616]
[1751302367233,30.0,156.84,156.83,5.6131616]
[1751302367615,36.3759245,156.84,156.83,5.6131616]
[1751302367836,41.9890861,156.84,156.74,18.933972]
[1751302368030,11.9890861,156.84,156.79,5.6131616]
[1751302368538,6.3759245,156.84,156.8,5.6131616]
[1751302368933,27.92889737,156.84,156.78,5.86]
[1751302369132,5.6131616,156.82,156.78,5.86]
[1751302369637,5.6131616,156.8,156.78,5.86]
[1751302370055,5.6131616,156.79,156.78,5.86]
[1751302370336,35.6131616,156.79,156.78,5.86]
[1751302370839,6.37836458,156.78,156.74,5.6131616]
[1751302371341,48.98427604,156.78,156.71,18.64964886]
[1751302371524,5.6131616,156.77,156.72,5.6131616]
[1751302371720,5.6131616,156.76,156.72,5.6131616]
[1751302371921,59.16973391,156.78,156.72,8.29745778]
[1751302372125,8.29745778,156.77,156.73,8.29745778]
[1751302372426,8.29745778,156.76,156.71,26.94710664]
[1751302372729,8.29745778,156.77,156.72,8.29745778]
[1751302372937,6.37917836,156.76,156.72,8.29745778]
[1751302374223,6.37886842,156.77,156.74,8.29745778]
[1751302375318,0.1,156.79,156.77,18.64964886]
[1751302375518,0.1,156.79,156.78,14.15745778]
[1751302377640,0.1,156.79,156.78,66.10763081]
[1751302377943,8.15434011,156.84,156.79,18.64964886]
[1751302378145,8.15434011,156.84,156.83,8.29745778]
[1751302378444,38.15434011,156.84,156.83,8.29745778]
[1751302378649,44.53040349,156.84,156.81,8.29745778]
[1751302381234,44.53040349,156.84,156.8,8.29745778]
[1751302381434,8.29745778,156.81,156.75,5.86]
[1751302381731,8.29745778,156.81,156.77,8.29745778]
[1751302382029,8.29745778,156.81,156.76,8.29745778]
[1751302382348,6.37795777,156.79,156.76,8.29745778]
[1751302382647,14.67541555,156.79,156.75,5.86]
[1751302382821,8.29745778,156.78,156.75,5.86]
[1751302383025,30.62030999,156.79,156.75,5.86]
[1751302383440,22.32285221,156.79,156.75,14.15745778]
[1751302384631,22.32285221,156.79,156.75,5.86]
[1751302384852,22.32285221,156.79,156.75,14.15745778]
[1751302385451,6.37795777,156.79,156.75,14.15745778]
[1751302386239,14.67541555,156.79,156.75,5.86]
[1751302386546,30.62030999,156.79,156.75,5.86]
[1751302387152,22.32285221,156.79,156.75,14.15745778]
[1751302389452,6.37795777,156.79,156.75,14.15745778]
[1751302390036,6.0971,156.83,156.75,14.15745778]
[1751302390037,8.15434011,156.84,156.76,27.62224097]
[1751302390244,0.1,156.81,156.78,8.29745778]
[1751302390753,6.37755102,156.8,156.77,24.64964886]
[1751302390934,6.37755102,156.8,156.78,8.29745778]
[1751302391135,6.47723613,156.81,156.79,8.29745778]
[1751302391337,0.1,156.81,156.79,8.29745778]
[1751302391651,6.47718893,156.81,156.79,8.29745778]
[1751302393257,6.47718893,156.81,156.78,8.29745778]
[1751302395347,6.47718893,156.81,156.77,6.0]
[1751302395348,6.47718893,156.81,156.79,8.29745778]
[1751302395552,6.47718893,156.81,156.78,8.29745778]
[1751302398259,23.96054971,156.81,156.76,8.29745778]
[1751302398556,8.01768893,156.81,156.79,8.29745778]
[1751302399060,6.47718893,156.81,156.79,8.29745778]
[1751302399255,0.1,156.81,156.8,8.29745778]
[1751302401444,0.1,156.81,156.8,14.29745778]
[1751302403351,0.1,156.81,156.8,32.94710664]
[1751302404868,0.1,156.81,156.8,39.32465766]
[1751302405065,0.1,156.81,156.8,32.94710664]
[1751302405247,0.1,156.81,156.8,31.94927812]
[1751302405437,0.1,156.81,156.8,65.32465766]
[1751302405767,0.1,156.81,156.8,58.94710664]
[1751302405942,0.1,156.81,156.8,65.32465766]
[1751302406144,0.1,156.81,156.8,32.94710664]
[1751302406449,0.1,156.81,156.8,14.29745778]
[1751302406641,0.1,156.81,156.8,32.94710664]
[1751302406846,0.1,156.81,156.8,39.32465766]
[1751302407337,0.1,156.81,156.8,31.02719988]
[1751302407537,0.1,156.81,156.8,39.32465766]
[1751302407739,0.1,156.81,156.8,36.61966065]
[1751302411574,0.1,156.81,156.8,31.31152302]
[1751302411861,0.1,156.81,156.8,32.0]
[1751302412064,0.1,156.81,156.8,11.59246077]
[1751302412858,0.1,156.81,156.8,6.0]
[1751302414055,0.1,156.81,156.8,11.59246077]
[1751302419266,0.1,156.81,156.8,6.0]
[1751302422276,6.47714431,156.81,156.8,6.0]
[1751302422687,12.06960508,156.81,156.8,6.0]
[1751302424776,18.59300508,156.81,156.8,6.0]
[1751302425080,48.59300508,156.81,156.8,6.0]
[1751302425958,43.00054431,156.81,156.8,6.0]
[1751302426374,30.1,156.81,156.8,6.0]
[1751302428366,36.47714431,156.81,156.8,6.0]
[1751302430667,42.06960508,156.81,156.8,6.0]
[1751302432677,58.01246586,156.81,156.78,0.2]
[1751302433155,5.59246077,156.79,156.78,0.2]
[1751302433361,35.59246077,156.79,156.78,0.2]
[1751302433881,41.97041854,156.79,156.78,0.2]
[1751302434280,68.61041854,156.79,156.78,0.2]
[1751302434491,41.97041854,156.79,156.78,0.2]
[1751302435360,36.37795777,156.79,156.78,0.2]
[1751302435565,41.97041854,156.79,156.78,0.2]
[1751302441669,6.37795777,156.79,156.78,0.2]
[1751302441875,16.04286078,156.81,156.78,0.2]
[1751302441876,6.37755102,156.8,156.78,0.2]
[1751302443395,6.47721186,156.81,156.78,11.77246077]
[1751302447505,6.47721186,156.81,156.79,5.59246077]
[1751302448113,6.47721186,156.81,156.8,5.59246077]
[1751302448278,30.1,156.81,156.8,5.59246077]
[1751302448476,0.1,156.81,156.8,24.24210963]
[1751302449009,0.1,156.81,156.8,24.52643277]
[1751302450216,0.1,156.81,156.8,24.24210963]
[1751302450393,0.1,156.81,156.79,5.59246077]
[1751302451215,6.4772712,156.81,156.8,5.59246077]
[1751302452195,0.1,156.81,156.8,5.59246077]
[1751302454526,6.47714431,156.81,156.8,5.59246077]
[1751302454820,6.47714431,156.81,156.79,24.24210963]
[1751302455517,0.1,156.81,156.79,24.24210963]
[1751302455721,6.47721538,156.81,156.79,24.24210963]
[1751302456522,6.47721538,156.81,156.78,32.18]
[1751302456947,6.47721538,156.81,156.78,6.18]
[1751302457437,6.47721538,156.81,156.78,11.77246077]
[1751302459311,5.59246077,156.79,156.78,6.18]
[1751302459815,41.97041854,156.79,156.78,0.2]
[1751302460428,50.10634168,156.79,156.78,0.2]
[1751302461831,20.10634168,156.79,156.78,0.2]
[1751302464723,50.10634168,156.79,156.78,0.2]
[1751302465730,36.37795777,156.79,156.78,0.2]
[1751302466813,41.97041854,156.79,156.78,0.2]
[1751302467614,36.37795777,156.79,156.78,0.2]
[1751302467830,41.97041854,156.79,156.78,0.2]
[1751302473947,36.37795777,156.79,156.78,0.2]
[1751302476233,41.97041854,156.79,156.78,0.2]
[1751302476639,30.0,156.79,156.78,0.2]
[1751302476937,30.0,156.79,156.78,5.79246077]
[1751302477828,30.0,156.79,156.78,0.2]
[1751302478217,6.47725492,156.81,156.78,5.79246077]
[1751302478522,0.1,156.81,156.79,5.59246077]
[1751302478732,30.0,156.8,156.79,5.59246077]
[1751302479040,30.0,156.8,156.78,5.79246077]
[1751302479347,6.4771553,156.81,156.78,5.79246077]
[1751302483180,0.1,156.81,156.79,5.59246077]
[1751302484134,0.1,156.81,156.79,11.47246077]
[1751302485856,6.47714983,156.81,156.79,11.47246077]
[1751302486032,6.47714983,156.81,156.79,5.88]
[1751302486234,0.1,156.81,156.79,11.47246077]
[1751302486537,0.1,156.81,156.8,5.59246077]
[1751302486741,30.1,156.81,156.8,5.59246077]
[1751302487548,0.1,156.81,156.8,5.59246077]
[1751302489045,0.1,156.81,156.8,24.24210963]
[1751302489549,0.1,156.81,156.8,30.61966065]
[1751302490224,0.1,156.81,156.8,24.24210963]
[1751302490923,0.1,156.81,156.8,30.61966065]
[1751302491944,0.1,156.81,156.8,24.24210963]
[1751302492449,0.1,156.81,156.8,31.39957732]
[1751302493126,0.1,156.81,156.8,30.76182222]
[1751302493351,0.1,156.81,156.8,31.39957732]
[1751302497355,0.1,156.81,156.8,25.16418787]
[1751302497732,0.1,156.81,156.8,31.54173889]
[1751302499055,0.1,156.81,156.8,30.90398379]
[1751302500246,0.1,156.81,156.8,31.54173889]
[1751302501056,0.1,156.81,156.8,58.10173889]
[1751302501852,0.1,156.88,156.84,44.64964886]
[1751302502057,0.1,156.88,156.87,5.59246077]
[1751302502256,30.1,156.88,156.87,11.47246077]
[1751302503063,0.1,156.88,156.87,11.47246077]
[1751302504159,0.1,156.88,156.87,30.12210963]
[1751302504661,6.47429882,156.88,156.87,5.88]
[1751302504868,0.1,156.88,156.87,5.88]
[1751302505055,0.1,156.88,156.87,11.47246077]
[1751302508857,0.1,156.88,156.87,17.84716593]
[1751302509569,0.1,156.88,156.87,11.47246077]
[1751302510364,0.1,156.88,156.87,5.88]
[1751302510570,0.1,156.88,156.87,11.47246077]
[1751302511073,0.1,156.88,156.87,17.84716593]
[1751302513212,0.1,156.88,156.87,18.13148907]
[1751302513466,0.1,156.88,156.87,95.55106921]
[1751302514569,0.1,156.88,156.87,69.55106921]
[1751302515365,8.13066813,156.91,156.9,44.64964886]
[1751302515566,0.1,156.91,156.9,77.41945825]
[1751302515764,0.1,156.91,156.9,71.82699748]
[1751302516074,0.1,156.91,156.9,76.78210963]
[1751302516655,0.1,156.91,156.9,50.52964886]
[1751302516863,0.1,156.91,156.9,56.12210963]
[1751302517655,0.1,156.91,156.9,24.52964886]
[1751302518470,0.1,156.91,156.9,30.12210963]
[1751302520555,6.4730801,156.91,156.9,5.88]